bitfinex-derivatives/quotes_SOLF0:USTF0_20250613
["timestamp","ask_amount","ask_price","bid_price","bid_amount"]
[1749777443223,20.15320469,143.77,143.72,2.1818]
[1749777443832,20.15320469,143.77,143.73,0.04845974]
[1749777443833,0.04399088,143.76,143.73,0.04845974]
[1749777444827,20.15320469,143.83,143.73,9.50845974]
[1749777445034,632.26,143.86,143.74,2.2709]
[1749777445331,6.9468,143.83,143.74,9.2213]
[1749777445632,6.9468,143.83,143.75,2.2272]
[1749777445831,20.15320469,143.85,143.75,2.2272]
[1749777446028,0.04822298,143.8,143.78,0.04783127]
[1749777446330,0.04654039,143.8,143.78,0.04546932]
[1749777447035,6.9483,143.79,143.78,0.04546932]
[1749777447428,231.84,143.79,143.73,2.5]
[1749777447628,20.15320469,143.76,143.73,2.5]
[1749777447824,231.84,143.79,143.73,2.5]
[1749777447825,251.99320469,143.79,143.73,2.5]
[1749777448630,399.8,143.86,143.75,0.04481338]
[1749777448631,0.04628296,143.77,143.75,0.04481338]
[1749777448928,20.15320469,143.85,143.75,0.04417475]
[1749777449131,650.89320469,143.86,143.74,4.4307]
[1749777449326,419.95320469,143.86,143.74,4.4307]
[1749777449732,650.97320469,143.86,143.74,4.4307]
[1749777449932,0.04861219,143.81,143.79,0.04611723]
[1749777453841,0.04861219,143.81,143.8,6.9479]
[1749777454134,20.15320469,143.9,143.79,7.00611723]
[1749777454333,20.15320469,143.9,143.76,20.15320469]
[1749777454740,20.15320469,143.93,143.79,20.15320469]
[1749777455038,0.05133388,143.87,143.85,0.0462015]
[1749777455233,0.05210662,143.87,143.85,0.04903216]
[1749777456733,420.33320469,143.94,143.85,0.04903216]
[1749777456933,420.33320469,143.94,143.83,2.2554]
[1749777457332,400.18,143.94,143.84,14.34762705]
[1749777457738,19.03602705,143.97,143.91,6.9422]
[1749777457939,0.05329646,143.95,143.93,0.04957982]
[1749777458137,0.04626557,143.95,143.93,0.05180125]
[1749777458839,400.18,144.01,143.96,6.9399]
[1749777459033,400.18,144.01,143.93,12.09622705]
[1749777459243,12.09622705,144.08,143.97,12.09622705]
[1749777459940,0.0212268,144.04,144.01,0.05068871]
[1749777460147,12.11745385,144.04,144.01,0.05068871]
[1749777460334,6.9373,144.02,143.94,4.3575]
[1749777460534,12.09622705,144.02,143.94,4.3575]
[1749777460739,12.09622705,144.0,143.94,4.3575]
[1749777460944,6.9389,143.99,143.94,2.1957]
[1749777461144,12.09622705,143.98,143.92,2.379]
[1749777461346,6.94,143.97,143.91,6.9424]
[1749777461540,0.05264966,143.96,143.88,2.3287]
[1749777461739,19.89050899,143.97,143.93,0.05178727]
[1749777461940,0.04829614,143.96,143.93,0.05178727]
[1749777462140,0.04829614,143.96,143.93,0.04806105]
[1749777462346,400.0,144.02,143.93,0.04806105]
[1749777462542,400.0,144.02,143.97,6.9395]
[1749777462845,400.0,144.02,143.93,2.2769]
[1749777463047,400.0,144.02,143.97,6.9395]
[1749777463243,400.0,144.02,143.98,0.0531676]
[1749777463244,0.02361937,144.01,143.98,0.0531676]
[1749777464049,19.91412836,144.01,143.98,0.0531676]
[1749777464449,19.91412836,144.01,143.88,2.3287]
[1749777464450,19.91412836,144.01,143.89,2.2258]
[1749777464753,6.9386,144.0,143.89,2.2258]
[1749777465552,419.89050899,144.02,143.93,0.05044209]
[1749777465553,0.05345317,143.96,143.93,0.05044209]
[1749777465847,0.04823442,143.96,143.93,0.04514946]
[1749777466047,400.0,144.02,143.93,0.04514946]
[1749777466249,400.0,144.02,143.93,19.89050899]
[1749777466443,225.3,144.07,143.93,19.89050899]
[1749777466647,19.89050899,144.08,143.93,19.89050899]
[1749777466648,6.9362,144.05,143.93,19.89050899]
[1749777466849,245.17050899,144.08,143.93,22.39050899]
[1749777467043,245.17050899,144.08,143.99,0.05047503]
[1749777467044,0.02855255,144.02,143.99,0.05047503]
[1749777467239,0.02855255,144.02,144.0,6.9382]
[1749777467448,0.02855255,144.02,143.99,0.04822444]
[1749777468450,0.02855255,144.02,143.99,6.98662444]
[1749777468645,0.02855255,144.02,143.99,0.04822444]
[1749777468838,399.94,144.1,143.99,19.93873343]
[1749777469038,399.94,144.1,144.06,6.9353]
[1749777469248,399.94,144.1,144.0,2.3169]
[1749777469843,399.94,144.1,144.04,0.04819695]
[1749777470444,19.89050899,144.13,144.04,0.04819695]
[1749777470639,6.9326,144.12,144.07,6.97948986]
[1749777470842,6.9326,144.12,144.07,0.04498986]
[1749777471036,19.89050899,144.13,144.07,0.04498986]
[1749777471445,19.89050899,144.1,144.0,2.3169]
[1749777471642,6.9362,144.05,143.96,19.89050899]
[1749777471839,19.89050899,144.07,143.96,2.2095]
[1749777472039,225.18,144.06,143.96,2.2095]
[1749777472242,19.89050899,144.04,143.95,2.3033]
[1749777472557,0.04498986,144.01,143.98,0.04564253]
[1749777472947,19.89050899,144.09,143.98,0.04564253]
[1749777473149,19.89050899,144.09,143.96,19.89050899]
[1749777473349,19.89050899,144.09,143.95,2.3033]
[1749777473549,19.89050899,144.03,143.95,2.3033]
[1749777473851,19.89050899,144.03,143.98,0.04700645]
[1749777474451,6.9381,144.01,143.98,0.04700645]
[1749777474644,19.89050899,144.03,143.98,0.04700645]
[1749777474957,19.89050899,144.03,143.93,2.5]
[1749777474958,19.89050899,144.0,143.93,2.5]
[1749777475155,19.89050899,143.96,143.93,2.38158312]
[1749777475356,399.76,143.95,143.93,2.38158312]
[1749777475556,225.16,144.02,143.93,2.38158312]
[1749777475753,19.93562276,143.99,143.96,0.0481709]
[1749777475967,6.9397,143.97,143.96,0.0481709]
[1749777476157,0.04511377,143.99,143.96,0.0481709]
[1749777476659,19.89050899,143.97,143.96,7.09e-05]
[1749777476958,19.89050899,143.97,143.93,2.38158312]
[1749777477756,26.83160899,143.94,143.93,8.312e-05]
[1749777477958,644.91050899,143.94,143.92,9.029e-05]
[1749777478160,644.91050899,143.94,143.81,2.1751]
[1749777478161,399.84,144.05,143.87,19.89050899]
[1749777478456,399.84,144.05,143.81,2.1751]
[1749777478457,19.89050899,143.95,143.81,22.06560899]
[1749777478653,227.76857676,144.04,143.81,22.06560899]
[1749777478654,19.89050899,143.92,143.81,2.1751]
[1749777479057,0.05334995,143.88,143.85,0.05315465]
[1749777479261,26.83560899,143.86,143.85,0.05100629]
[1749777479761,26.83560899,143.86,143.68,399.84]
[1749777479762,6.9468,143.83,143.73,4.5548]
[1749777479966,19.89050899,143.83,143.73,4.5548]
[1749777480161,6.9479,143.8,143.73,4.5548]
[1749777480371,19.89050899,143.81,143.73,7.0548]
[1749777480869,0.05135181,143.78,143.76,0.05181331]
[1749777481263,0.05135181,143.78,143.77,6.9493]
[1749777481765,245.09050899,143.91,143.77,6.96]
[1749777481961,19.89050899,143.91,143.79,19.89050899]
[1749777482164,399.92,143.92,143.79,19.89050899]
[1749777482560,0.04843618,143.87,143.84,0.04877751]
[1749777482766,399.92,143.92,143.84,0.04877751]
[1749777483066,6.18676089,144.08,143.91,19.89050899]
[1749777483270,588.0,144.13,143.94,19.89050899]
[1749777483271,19.89050899,144.09,143.94,19.89050899]
[1749777483463,19.89050899,144.06,143.92,4.3318]
[1749777483666,19.89050899,144.03,143.92,4.3318]
[1749777483866,19.89050899,144.03,143.98,0.04538442]
[1749777484068,225.24,144.1,143.98,0.04538442]
[1749777484267,19.89050899,144.04,144.03,6.801e-05]
[1749777484471,6.9373,144.02,143.92,4.3318]
[1749777484667,19.89050899,144.04,143.92,4.3318]
[1749777484967,6.9377,144.01,143.92,4.3318]
[1749777485168,400.04,144.06,143.92,4.3318]
[1749777485370,0.04689674,144.0,143.98,0.04402478]
[1749777485582,0.05030697,144.0,143.98,0.04745527]
[1749777485870,19.89050899,144.12,143.98,6.98745527]
[1749777486067,19.89050899,144.12,143.92,4.3318]
[1749777486374,19.89050899,144.12,143.99,19.89050899]
[1749777486576,19.89050899,144.12,144.0,2.3843]
[1749777486768,6.18676089,144.21,144.08,19.89050899]
[1749777486970,6.18676089,144.21,144.0,2.3843]
[1749777486971,419.87050899,144.24,144.11,19.89050899]
[1749777487372,19.89050899,144.27,144.17,6.93]
[1749777487573,19.89050899,144.27,144.14,19.89050899]
[1749777487773,245.05050899,144.27,144.14,19.89050899]
[1749777487973,0.04095879,144.22,144.19,0.04785252]
[1749777491678,6.96865879,144.22,144.19,0.04785252]
[1749777491871,0.04095879,144.22,144.19,0.04785252]
[1749777492774,399.98,144.32,144.2,19.89050899]
[1749777492980,399.98,144.32,144.2,22.12220899]
[1749777493182,19.89050899,144.38,144.23,19.89050899]
[1749777493372,19.89050899,144.38,144.2,2.2317]
[1749777493373,19.89050899,144.35,144.2,2.2317]
[1749777493571,19.89050899,144.35,144.21,19.89050899]
[1749777493776,19.89050899,144.35,144.27,0.05176973]
[1749777493971,19.89050899,144.32,144.2,2.2317]
[1749777494176,224.84,144.38,144.25,0.05183002]
[1749777494380,6.9259,144.26,144.19,6.9289]
[1749777494576,19.89050899,144.28,144.16,4.3992]
[1749777495075,19.89050899,144.34,144.21,19.89050899]
[1749777495468,0.04794289,144.29,144.26,0.04923826]
[1749777495977,0.04794289,144.29,144.16,4.3992]
[1749777495978,19.89050899,144.28,144.16,4.3992]
[1749777497077,0.0490903,144.23,144.21,0.05001369]
[1749777497871,6.9762903,144.23,144.21,0.05001369]
[1749777498072,0.0490903,144.23,144.21,0.05001369]
[1749777498476,19.89050899,144.22,144.16,2.5]
[1749777498673,19.89050899,144.25,144.16,2.5]
[1749777498871,399.3,144.3,144.16,2.5]
[1749777498872,19.89050899,144.28,144.16,2.5]
[1749777499376,0.04925573,144.23,144.21,0.05220374]
[1749777500773,26.81820899,144.22,144.21,0.05220374]
[1749777500975,26.81820899,144.22,144.21,3.74e-06]
[1749777501185,26.83050899,144.22,144.16,2.5]
[1749777501373,19.89050899,144.19,144.16,2.5]
[1749777501770,6.9301,144.17,144.16,2.4124]
[1749777501968,6.9301,144.17,144.16,0.0001]
[1749777502172,6.9301,144.17,143.99,19.89050899]
[1749777502173,6.94,144.17,143.99,19.89050899]
[1749777502477,19.89050899,144.13,144.0,2.149]
[1749777502779,419.15050899,144.2,144.05,19.89050899]
[1749777502979,419.15050899,144.2,144.06,2.2529]
[1749777503178,419.15050899,144.2,144.06,22.14340899]
[1749777503381,0.05066953,144.14,144.12,0.04638412]
[1749777503576,0.04459029,144.14,144.12,0.04397871]
[1749777503782,19.93509928,144.14,144.12,0.04397871]
[1749777504178,6.932,144.13,144.12,0.04397871]
[1749777504677,6.94,144.13,144.01,9.3108]
[1749777504876,19.89050899,144.09,144.01,2.3735]
[1749777505084,19.89050899,144.09,143.98,2.2921]
[1749777505677,6.9368,144.04,144.02,0.04672014]
[1749777505873,399.32,144.18,144.02,0.04458467]
[1749777506077,19.89050899,144.13,143.98,19.89050899]
[1749777506277,19.89050899,144.16,144.01,19.89050899]
[1749777506477,19.89050899,144.13,144.02,4.6481]
[1749777506682,6.9304,144.17,144.09,6.9335]
[1749777506872,399.32,144.18,144.05,19.89050899]
[1749777507074,0.04934434,144.14,144.12,0.04896114]
[1749777508281,0.04934434,144.14,144.12,6.98126114]
[1749777508481,0.04934434,144.14,144.12,0.04896114]
[1749777508879,0.04934434,144.14,144.12,6.98136114]
[1749777509185,0.04934434,144.14,144.12,2.54896114]
[1749777510282,399.32,144.18,144.12,2.54896114]
[1749777510784,244.31050899,144.23,144.12,2.54896114]
[1749777510992,19.89050899,144.2,144.12,2.5]
[1749777511281,0.05278265,144.17,144.15,0.04935521]
[1749777512384,0.05278265,144.17,144.16,6.9306]
[1749777512683,419.22233685,144.26,144.15,0.04935521]
[1749777512887,419.22233685,144.26,144.14,26.52233685]
[1749777512888,399.4,144.26,144.14,26.52233685]
[1749777513090,399.4,144.26,144.17,19.82233685]
[1749777513386,12.0389285,144.29,144.18,12.0389285]
[1749777513582,12.0389285,144.27,144.14,6.7]
[1749777513782,0.05143217,144.22,144.19,0.04783863]
[1749777514987,0.05143217,144.22,144.19,6.97683863]
[1749777515190,0.05143217,144.22,144.19,0.04783863]
[1749777515987,6.9281,144.21,144.19,0.04783863]
[1749777516289,6.9281,144.21,144.14,6.7]
[1749777516290,12.0389285,144.21,144.14,6.7]
[1749777516783,12.0389285,144.19,144.14,6.7]
[1749777517191,19.88525753,144.18,144.15,0.04752672]
[1749777517383,19.88525753,144.18,144.15,0.04585226]
[1749777517384,0.04773569,144.18,144.15,0.04585226]
[1749777520381,19.87915508,144.18,144.15,0.04585226]
[1749777520882,26.81915508,144.18,144.14,6.64264204]
[1749777521195,26.76241939,144.15,144.14,6.64264204]
[1749777521491,26.77141939,144.15,144.12,2.5]
[1749777521688,399.34,144.14,144.03,2.3412]
[1749777521888,0.04760811,144.1,144.07,0.05019733]
[1749777522394,19.8790275,144.1,144.07,0.05019733]
[1749777522888,0.04760811,144.1,144.07,0.05019733]
[1749777523392,399.34,144.14,144.13,6.932]
[1749777523689,399.34,144.14,144.07,2.5]
[1749777523995,399.34,144.14,144.11,6.9326]
[1749777524385,399.39216374,144.14,144.07,2.5]
[1749777524591,399.39216374,144.14,144.11,0.0461156]
[1749777525184,399.39216374,144.14,144.11,6.9787156]
[1749777525589,399.39216374,144.14,144.11,0.0461156]
[1749777527695,19.83141939,144.12,144.07,2.5]
[1749777527893,223.88,144.11,144.07,2.5]
[1749777528691,0.04843766,144.1,144.08,0.05012945]
[1749777530099,0.04843766,144.1,144.09,6.9339]
[1749777530300,19.83141939,144.21,144.08,6.99012945]
[1749777530496,9.7095904,144.2,144.15,6.9306]
[1749777530797,9.7095904,144.2,144.1,19.83141939]
[1749777530798,399.42,144.22,144.1,19.83141939]
[1749777531003,399.42,144.22,144.13,19.83141939]
[1749777531305,0.04518741,144.19,144.16,0.05077094]
[1749777531596,0.04518741,144.19,144.17,6.9297]
[1749777531798,0.04518741,144.19,144.16,0.05077094]
[1749777532105,19.83141939,144.27,144.19,6.9289]
[1749777532106,223.74,144.24,144.19,6.9289]
[1749777532298,19.83141939,144.27,144.15,19.83141939]
[1749777532493,405.83698009,144.3,144.08,18.4068]
[1749777532494,419.29141939,144.3,144.18,19.83141939]
[1749777532693,6.9248,144.28,144.19,2.1709]
[1749777533205,0.04878462,144.25,144.22,0.05179444]
[1749777533996,0.04878462,144.25,144.24,6.9267]
[1749777534600,399.46,144.3,144.28,6.9244]
[1749777534899,8.24901452,144.38,144.19,2.1709]
[1749777534900,6.37698009,144.37,144.25,19.83141939]
[1749777535103,230.5011,144.36,144.31,6.923]
[1749777535400,399.36,144.38,144.25,19.83141939]
[1749777535602,0.05297348,144.33,144.3,0.04393574]
[1749777535801,223.59297348,144.33,144.3,0.04393574]
[1749777536707,0.05297348,144.33,144.3,0.04393574]
[1749777537402,0.05297348,144.33,144.32,6.9229]
[1749777537997,419.05141939,144.43,144.36,6.9209]
[1749777538300,223.36,144.42,144.31,19.83141939]
[1749777538503,223.36,144.41,144.37,6.9201]
[1749777538703,406.1377,144.43,144.31,19.83141939]
[1749777539004,0.03674649,144.38,144.37,6.9201]
[1749777539203,0.03674649,144.39,144.36,0.05327292]
[1749777539706,6.9201,144.38,144.36,0.05327292]
[1749777540004,19.86816588,144.39,144.36,0.05327292]
[1749777540204,19.83141939,144.38,144.32,6.9227]
[1749777540406,223.32,144.41,144.3,2.3304]
[1749777540603,2.77984659,144.4,144.3,2.3304]
[1749777540801,6.9195,144.39,144.3,2.3304]
[1749777541007,19.83141939,144.38,144.3,2.3304]
[1749777541208,0.04871624,144.35,144.33,0.04904012]
[1749777541407,242.99141939,144.34,144.15,421.44023662]
[1749777541600,242.99141939,144.34,144.21,19.83141939]
[1749777542003,242.99141939,144.34,144.18,4.6389]
[1749777542004,242.99141939,144.34,144.19,19.83141939]
[1749777542195,19.83141939,144.31,144.18,4.6389]
[1749777542401,399.04,144.33,144.23,0.04445418]
[1749777542402,26.75761939,144.25,144.23,0.04445418]
[1749777542601,230.0906664,144.25,144.18,4.6389]
[1749777542905,230.0911664,144.25,144.23,0.04969558]
[1749777543107,19.83141939,144.24,144.15,2.5]
[1749777543306,19.83141939,144.2,144.15,2.5]
[1749777544199,0.0453423,144.19,144.16,0.05143686]
[1749777544401,0.0453423,144.19,144.15,2.5]
[1749777544402,19.83141939,144.17,144.15,2.5]
[1749777544599,6.9306,144.16,144.15,2.5]
[1749777545005,19.83141939,144.17,144.15,2.5]
[1749777545197,0.0453423,144.19,144.15,2.5]
[1749777545398,0.0453423,144.19,144.16,0.05063737]
[1749777545805,0.0453423,144.19,144.17,6.9301]
[1749777546104,19.83141939,144.28,144.16,26.82205676]
[1749777546312,223.02,144.28,144.16,22.19081939]
[1749777546499,223.02,144.28,144.17,2.1542]
[1749777546699,19.83141939,144.27,144.17,2.1542]
[1749777547006,223.02,144.28,144.17,21.98561939]
[1749777547208,0.05327006,144.24,144.21,0.04460605]
[1749777547410,419.01141939,144.3,144.21,0.04460605]
[1749777547609,419.01141939,144.3,144.17,21.98561939]
[1749777547812,399.18,144.3,144.2,19.83141939]
[1749777548214,419.01141939,144.3,144.17,21.98561939]
[1749777548409,9.537e-05,144.25,144.22,0.04802463]
[1749777548615,9.537e-05,144.25,144.23,19.83141939]
[1749777548818,9.537e-05,144.25,144.24,6.9267]
[1749777549018,399.18,144.38,144.23,26.77141939]
[1749777549317,222.88,144.42,144.28,19.83141939]
[1749777549504,222.88,144.42,144.18,8.49863662]
[1749777549505,222.86,144.42,144.31,19.83141939]
[1749777549916,6.918,144.43,144.31,19.83141939]
[1749777550106,0.05030702,144.38,144.35,0.04758834]
[1749777550912,0.05030702,144.38,144.36,6.9208]
[1749777551110,0.05030702,144.38,144.35,0.04758834]
[1749777555109,19.88172641,144.38,144.21,19.83141939]
[1749777555320,19.83141939,144.34,144.22,6.7844]
[1749777555516,222.5,144.35,144.24,19.83141939]
[1749777556018,222.5,144.35,144.28,0.04820345]
[1749777556323,0.05141575,144.33,144.28,0.04820345]
[1749777556513,19.83141939,144.4,144.28,0.04820345]
[1749777556708,399.16,144.46,144.3,19.83141939]
[1749777556709,19.83141939,144.43,144.3,19.83141939]
[1749777556913,2.79867101,144.42,144.31,2.2494]
[1749777557113,6.9177,144.43,144.33,19.83141939]
[1749777557517,0.04375994,144.39,144.37,0.05018713]
[1749777558116,19.83141939,144.38,144.37,0.05018713]
[1749777558417,244.96652458,144.38,144.28,2.5]
[1749777558621,242.15141939,144.38,144.28,2.5]
[1749777558920,222.32,144.38,144.28,2.5]
[1749777559117,399.16,144.46,144.3,19.83141939]
[1749777559315,0.04476997,144.39,144.37,0.04599373]
[1749777559516,0.04880878,144.39,144.37,0.04819337]
[1749777560217,6.92,144.38,144.37,0.04819337]
[1749777560425,0.04880878,144.39,144.31,4.4625]
[1749777560426,0.04880878,144.39,144.31,2.1856]
[1749777560716,6.921,144.36,144.31,2.1856]
[1749777560923,19.83141939,144.38,144.31,2.1856]
[1749777561117,19.83141939,144.38,144.28,2.5]
[1749777561314,0.05279547,144.34,144.32,0.05207401]
[1749777561522,0.04493499,144.34,144.32,0.04874647]
[1749777561911,419.97,144.46,144.32,0.04874647]
[1749777561912,19.83141939,144.41,144.32,0.04874647]
[1749777562124,19.83141939,144.44,144.3,19.83141939]
[1749777562322,399.16,144.46,144.3,19.83141939]
[1749777562518,19.83141939,144.44,144.3,19.83141939]
[1749777562714,399.16,144.46,144.33,19.83141939]
[1749777562914,0.05162244,144.41,144.38,0.05083678]
[1749777564222,19.83141939,144.4,144.38,0.00590179]
[1749777565026,0.05162244,144.41,144.38,0.00590179]
[1749777565921,22.67101105,144.4,144.38,0.00590179]
[1749777566120,9.75926757,144.39,144.38,0.00590179]
[1749777566322,19.83141939,144.4,144.38,0.00590179]
[1749777566721,6.9196,144.39,144.38,0.00590179]
[1749777567430,9.7595454,144.39,144.38,0.00590179]
[1749777567627,14.49590445,144.39,144.38,0.00590179]
[1749777567933,6.9196,144.39,144.38,0.00590179]
[1749777568328,9.75958097,144.39,144.38,0.00590179]
[1749777568531,9.75882521,144.39,144.38,0.00590179]
[1749777568836,9.75908395,144.39,144.38,0.00590179]
[1749777569034,6.9196,144.39,144.38,0.00590179]
[1749777569533,9.75493481,144.39,144.38,0.00590179]
[1749777569834,228.6793,144.4,144.38,0.00590179]
[1749777570027,19.83141939,144.39,144.38,0.00590179]
[1749777570228,14.50280302,144.39,144.38,0.00590179]
[1749777570524,2.83530498,144.39,144.38,0.00590179]
[1749777570723,248.51081939,144.4,144.38,0.00590179]
[1749777570929,241.59141939,144.4,144.38,0.00590179]
[1749777571125,19.83141939,144.4,144.38,0.00590179]
[1749777571329,0.05162244,144.41,144.38,0.00590179]
[1749777571830,0.05162244,144.41,144.38,2.50590179]
[1749777572530,19.83141939,144.4,144.38,2.50590179]
[1749777573034,9.71786541,144.39,144.38,2.50590179]
[1749777573435,9.72609322,144.39,144.38,2.50590179]
[1749777573639,7.54118548,144.39,144.27,4.6077]
[1749777573936,19.83141939,144.33,144.27,4.6077]
[1749777574239,221.5,144.34,144.19,2.3485]
[1749777574438,221.5,144.34,144.22,19.83141939]
[1749777574641,19.83141939,144.35,144.27,0.04784992]
[1749777574936,19.83141939,144.35,144.22,19.83141939]
[1749777575334,221.46,144.36,144.22,19.83141939]
[1749777575633,0.05111303,144.3,144.28,0.0523633]
[1749777575835,0.05111303,144.3,144.22,2.5]
[1749777575836,0.04691671,144.3,144.22,2.5]
[1749777576137,19.83141939,144.32,144.22,2.5]
[1749777576343,6.9247,144.3,144.22,2.5]
[1749777576542,398.84,144.34,144.22,2.5]
[1749777576736,19.83141939,144.32,144.22,2.5]
[1749777576932,0.04717619,144.28,144.26,0.05112843]
[1749777578841,19.87859558,144.28,144.26,0.05112843]
[1749777579230,18.97343507,144.27,144.26,0.05112843]
[1749777579430,12.04763507,144.27,144.26,0.05112843]
[1749777579640,221.32717619,144.28,144.26,0.05112843]
[1749777581141,12.04763507,144.27,144.26,0.05112843]
[1749777581543,0.04717619,144.28,144.26,0.05112843]
[1749777582241,12.04763507,144.27,144.26,0.05112843]
[1749777582641,6.9274,144.24,144.22,2.5]
[1749777582842,18.97503507,144.24,144.22,2.5]
[1749777583240,12.04763507,144.24,144.22,2.5]
[1749777583635,0.04741163,144.24,144.22,2.5447387]
[1749777585645,12.0950467,144.24,144.22,2.5447387]
[1749777586045,0.04741163,144.24,144.22,2.5447387]
[1749777586546,12.0950467,144.24,144.22,2.5447387]
[1749777586950,233.0150467,144.24,144.22,2.5447387]
[1749777587946,220.96741163,144.24,144.22,2.5447387]
[1749777588546,0.04741163,144.24,144.22,2.5447387]
[1749777588744,0.04741163,144.24,144.23,6.9278]
[1749777588939,0.04741163,144.24,144.22,2.5447387]
[1749777589948,0.04741163,144.24,144.23,6.9278]
[1749777590746,0.04741163,144.24,144.22,2.5447387]
[1749777590945,12.0950467,144.24,144.22,2.5447387]
[1749777591136,6.9278,144.23,144.22,2.5447387]
[1749777591740,18.97543507,144.23,144.22,2.5447387]
[1749777591941,6.9295,144.2,144.16,2.0]
[1749777592247,12.04763507,144.2,144.16,2.0]
[1749777592842,12.04763507,144.2,144.04,13.8733]
[1749777592843,0.04854294,144.19,144.17,0.04489486]
[1749777593139,0.04854294,144.19,144.06,12.04763507]
[1749777593140,6.9311,144.17,144.06,12.04763507]
[1749777593340,0.05036689,144.13,144.1,6.98482644]
[1749777593543,0.05036689,144.13,144.1,0.05092644]
[1749777593745,12.04763507,144.2,144.1,2.55092644]
[1749777593943,12.04763507,144.22,144.1,4.5]
[1749777594137,399.1,144.24,144.14,12.04763507]
[1749777594345,399.1,144.24,144.16,12.04763507]
[1749777594847,399.1,144.24,144.15,4.5606]
[1749777594848,0.04775797,144.21,144.19,0.04848948]
[1749777595946,220.52,144.2,144.19,0.04848948]
[1749777596145,239.49683507,144.2,144.19,0.04848948]
[1749777596350,220.52,144.2,144.14,2.0]
[1749777596545,232.56763507,144.2,144.14,2.0]
[1749777597347,0.05045747,144.18,144.16,0.04564525]
[1749777599253,18.97823507,144.17,144.16,0.04564525]
[1749777600248,6.9306,144.17,144.16,0.04564525]
[1749777600849,6.98075747,144.18,144.16,0.04564525]
[1749777601050,0.05045747,144.18,144.16,0.04564525]
[1749777601957,399.1,144.24,144.16,19.03328032]
[1749777602155,399.1,144.24,144.17,2.2649]
[1749777602363,12.04763507,144.29,144.18,12.04763507]
[1749777602552,220.18,144.29,144.19,2.3661]
[1749777602755,0.05041862,144.25,144.23,0.04787504]
[1749777603054,0.05165896,144.25,144.23,0.04858055]
[1749777603355,399.26,144.33,144.23,2.04858055]
[1749777603557,399.26,144.33,144.23,2.0]
[1749777603859,399.26,144.33,144.28,6.9252]
[1749777604160,0.04624529,144.32,144.29,0.04911897]
[1749777604360,0.04624529,144.32,144.3,6.9241]
[1749777604858,6.9211,144.37,144.29,2.54911897]
[1749777604859,12.04763507,144.39,144.33,6.9225]
[1749777605160,411.32763507,144.41,144.3,14.40653507]
[1749777605357,226.9397,144.4,144.3,14.40653507]
[1749777605553,12.04763507,144.37,144.3,2.3589]
[1749777605756,12.09940123,144.35,144.32,0.05093414]
[1749777605963,0.05176616,144.35,144.34,6.9225]
[1749777606358,219.9,144.4,144.32,0.05093414]
[1749777606559,12.04763507,144.35,144.32,0.05093414]
[1749777606755,12.04763507,144.33,144.32,0.05093414]
[1749777606951,6.9244,144.3,144.29,2.5]
[1749777607155,18.97203507,144.3,144.29,2.5]
[1749777607458,18.97203507,144.3,144.29,2.3003]
[1749777607658,6.9267,144.26,144.23,2.0]
[1749777607863,19.02243355,144.26,144.23,2.05275647]
[1749777608158,12.09573355,144.26,144.23,2.05275647]
[1749777608661,12.04763507,144.24,144.23,2.05275647]
[1749777608961,18.97493507,144.24,144.23,0.05275647]
[1749777609662,12.04763507,144.24,144.23,0.05275647]
[1749777609857,0.04809848,144.26,144.23,0.05275647]
[1749777610654,0.04809848,144.26,144.23,2.55275647]
[1749777611760,411.20763507,144.31,144.23,2.55275647]
[1749777611964,411.20763507,144.31,144.24,2.2332]
[1749777612162,12.04763507,144.27,144.23,2.5]
[1749777612663,12.04763507,144.3,144.23,2.5]
[1749777612865,0.04544741,144.28,144.25,0.05091979]
[1749777613062,12.04763507,144.35,144.29,6.9246]
[1749777613257,12.04763507,144.35,144.26,2.3049]
[1749777613458,411.20763507,144.39,144.28,12.04763507]
[1749777613659,411.20763507,144.39,144.32,6.9231]
[1749777613962,219.44,144.38,144.28,12.04763507]
[1749777614262,0.04084032,144.34,144.33,6.9226]
[1749777614564,0.04084032,144.35,144.32,0.0457601]
[1749777614754,0.04084032,144.35,144.34,6.9225]
[1749777615561,0.04084032,144.35,144.32,6.9688601]
[1749777615764,399.16,144.39,144.32,0.0457601]
[1749777616063,219.24,144.41,144.32,14.09339517]
[1749777616257,231.28763507,144.42,144.32,14.04763507]
[1749777616464,231.28763507,144.42,144.32,2.0]
[1749777616465,12.04763507,144.4,144.32,2.0]
[1749777616864,12.04763507,144.4,144.35,0.04551399]